Cogmind - Beta 17 @@@ ROGUE MODE // 2026.07.14 @ 20:03:01 Player: kite Result: Self-destructed Performance ------------- Evolutions (2) 1000 Regions Visited (5) 1000 Robots Destroyed (33) 165 Value Destroyed (748) 748 Prototype IDs (23) 460 Alien Tech Used (0) 0 Bonus (339) 339 TOTAL SCORE: 3712 Bonus ------- Follower Combat Kills 39 Aligned with FarCom 300 Cogmind --------- Core Integrity 523/550 Matter 260/300 Energy 34/100 System Corruption 0% Temperature Cool (0) Movement Rolling (108) Ox1 Location -8/Materials Parts ------- > --- POWER (1) -------- (None) > --- PROPULSION (4) --- Wheel Compact Wheel Compact Wheel > --- UTILITY (3) ------ Heat Sink Heat Sink High-capacity Storage Unit > --- WEAPON (3) ------- EM Pulse Gun Small Laser Heavy Mace > --- INVENTORY (20) --- Aluminum Leg Huge Storage Unit Large Matter Pod (150) Structural Scanner Modified TNC Particle Gun Light Assault Rifle Light Cannon Peak State ------------ > --- POWER ------------ (None) > --- PROPULSION ------- Wheel Wheel Compact Wheel Compact Wheel > --- UTILITY ---------- Heat Sink Heat Sink High-capacity Storage Unit > --- WEAPON ----------- EM Pulse Gun Small Laser Heavy Mace > --- INVENTORY -------- Aluminum Leg Huge Storage Unit Large Matter Pod Structural Scanner Modified TNC Particle Gun Light Assault Rifle Light Cannon [Rating: 13] Favorites ----------- Power Ion Engine Engine Ion Engine Propulsion Aluminum Leg Treads Light Treads Leg Aluminum Leg Wheel Compact Wheel Utility Heat Sink Device Heat Sink Storage High-capacity Storage Unit Weapon Medium Laser Energy Gun Medium Laser Ballistic Gun Light Assault Rifle Ballistic Cannon Light Cannon Launcher Grenade Launcher Impact Weapon Heavy Mace Build | -11 -10 -10 -10 -9 -8 ------- Run | Yrd Mat Min Exi Min Mat Slots Evolved 4 | . . . . . 4 Power . | . . . . . . Propulsion 2 | . . . . . 2 Utility 1 | . . . . . 1 Weapon 1 | . . . . . 1 Parts Attached 31 | 7 9 3 2 6 4 Power 2 | 1 . . . 1 . Engine 2 | 1 . . . 1 . Core . | . . . . . . Reactor . | . . . . . . Propulsion 8 | 2 . 2 . 2 2 Treads 2 | 2 . . . . . Leg 2 | . . 2 . . . Wheel 4 | . . . . 2 2 Hover . | . . . . . . Flight . | . . . . . . Utility 6 | 1 4 1 . . . Device 3 | . 2 1 . . . Storage 3 | 1 2 . . . . Processor . | . . . . . . Hackware . | . . . . . . Protection . | . . . . . . Artifact . | . . . . . . Weapon 15 | 3 5 . 2 3 2 Energy Gun 11 | 2 3 . 2 3 1 Energy Cannon . | . . . . . . Ballistic Gun 1 | 1 . . . . . Ballistic Cannon 1 | . 1 . . . . Launcher 1 | . 1 . . . . Special Weapon . | . . . . . . Impact Weapon 1 | . . . . . 1 Slashing Weapon . | . . . . . . Piercing Weapon . | . . . . . . Special Melee Weapon . | . . . . . . Unidentified Prototypes . | . . . . . . Parts Lost 12 | . . 1 . 9 2 Power 2 | . . . . 2 . Propulsion 4 | . . 1 . 2 1 Utility 1 | . . . . 1 . Weapon 5 | . . . . 4 1 Highest Loss Streak 5 | . . 1 . 5 2 To Critical Strikes . | . . . . . . Average Backups 11 | 2 9 14 16 10 10 Power . | . 1 1 1 . . Propulsion 1 | 1 2 1 1 1 2 Utility 3 | . 1 3 5 4 4 Weapon 5 | . 4 8 8 4 4 Tool/Special . | . . . . . . Unused Backups 5 | . 1 . . . 4 Power . | . . . . . . Propulsion . | . . . . . . Utility 3 | . . . . . 3 Weapon 2 | . 1 . . . 1 Tool/Special . | . . . . . . Average Slot Usage (%) 86 | . 92 99 88 59 69 Engine 12 | . 14 14 14 7 . Treads 10 | . 28 8 . . . Leg 13 | . . 18 28 12 . Wheel 1 | . . . . 5 27 Device 10 | . 7 14 14 7 12 Storage 13 | . 14 14 14 9 9 Energy Gun 22 | . 26 28 17 16 19 Peak Build Rating 13 | 6 9 9 10 9 13 Average Rating 7 | 4 7 8 8 5 9 On Entrance 6 | . 6 9 9 9 7 Avg Prop Armor Cover (%) . | . . . . . . Naked Turns 126 | . . . . 126 . Heaviest Build 51 | 14 51 51 51 50 48 Greatest Support 52 | 40 40 40 20 26 52 Greatest Overweight (x) 2 | . 1 2 2 2 1 Average Overweight (x) . | . . 1 2 . . Largest Inventory Capacity 20 | 8 20 20 20 20 20 Average Capacity 16 | 7 11 20 20 15 20 Most Carried 18 | 4 14 15 18 16 13 Average Carried 11 | 2 9 14 16 10 10 Final Capacity 20 | 8 20 20 20 20 20 Final Carried 16 | 4 14 15 16 12 8 Class Distribution -------------------- 100% | Mutant Dominant Class ---------------- Mutant | -10/Materials Mutant | -10/Mines Mutant | -10/Exiles Mutant | -9/Mines Mutant | -8/Materials Resources | -11 -10 -10 -10 -9 -8 ----------- Run | Yrd Mat Min Exi Min Mat Matter Collected 803 | 203 323 68 . 209 . Remotely . | . . . . . . Salvage Created 1033 | . 634 121 . 212 66 Parts 55 | . 30 11 . 10 4 Haulers Intercepted . | . . . . . . Recyclers Shooed 1 | . 1 . . . . Parts Field Recycled . | . . . . . . Retrieved Matter . | . . . . . . Parts Self-Destructed . | . . . . . . Prevented . | . . . . . . Parts Restored . | . . . . . . Kills | -11 -10 -10 -10 -9 -8 ------- Run | Yrd Mat Min Exi Min Mat Combat Hostiles Destroyed 27 | . 13 4 . 9 1 Guns 14 | . 8 4 . 2 . Cannons 2 | . 2 . . . . AOE 9 | . 3 . . 6 . Classes Destroyed 9 | . 6 . . 2 1 Worker 2 | . 1 . . 1 . Builder 2 | . 1 1 . . . Recycler 2 | . 2 . . . . Operator 1 | . . . . . 1 Watcher 1 | . 1 . . . . Swarmer 10 | . 3 3 . 4 . Grunt 13 | . 10 1 . 2 . Duelist 2 | . . . . 1 1 Assembled 2 | . . . . 2 . Best Kill Streak 6 | . 5 3 . 6 1 Combat Bots Only 6 | . 3 3 . 6 1 Max Kills in Single Turn 4 | . 3 2 . 4 1 Gunslinging 1 | . . 1 . . . Exploded 4 | . 2 . . 4 . Melee . | . . . . . . Uniques/NPCs Destroyed . | . . . . . . Combat | -11 -10 -10 -10 -9 -8 -------- Run | Yrd Mat Min Exi Min Mat Hostile Shots Fired 131 | . 51 26 . 44 10 Missed 38 | . 17 7 . 11 3 Hits 93 | . 34 19 . 33 7 Melee 9 | . . . . 6 3 Projectile 84 | . 34 19 . 27 4 Critical Strikes 3 | . . . . 2 1 Damage Taken 1373 | . 457 181 . 576 159 Core 207 | . 61 13 . 106 27 Absorbed by Shields . | . . . . . . Core Remaining (%) 64 | 100 . . . 28 . Volleys Fired 70 | 1 38 13 . 15 3 Largest 2 | 2 2 2 . 2 2 Hottest 115 | 80 115 115 . 80 80 Shots Fired 129 | 2 75 26 1 20 5 Gun 120 | 2 70 26 1 16 5 Cannon 4 | . 4 . . . . Launcher 5 | . 1 . . 4 . Special . | . . . . . . Kinetic 4 | . 4 . . . . Thermal 81 | . 52 26 1 . 2 Explosive 5 | . 1 . . 4 . Electromagnetic 39 | 2 18 . . 16 3 Robot Hit Streak 12 | . 10 4 . 12 11 Robot Miss Streak 3 | . 3 2 . 1 3 Penetration Max . | . . . . . . Secondary Targets 3 | . 1 1 . 1 . Max Gunslinging Chain 1 | . 1 1 . 1 . Shots Hit Robots 88 | . 51 15 . 19 3 Core Hits 53 | . 28 7 . 16 2 Critical Kills . | . . . . . . Critical Parts Destroyed . | . . . . . . Critical Strikes 7 | . 5 2 . . . Burn 6 | . 4 2 . . . Blast 1 | . 1 . . . . Melee Attacks 1 | . . . . . 1 Impact 1 | . . . . . 1 Slashing . | . . . . . . Piercing . | . . . . . . Sneak Attacks . | . . . . . . Combat Hostiles . | . . . . . . Follow-up Attacks . | . . . . . . Damage Inflicted 2165 | . 1236 225 . 632 72 Guns 1112 | . 685 225 . 172 30 Cannons 48 | . 48 . . . . Explosions 963 | . 503 . . 460 . Melee 42 | . . . . . 42 Ramming . | . . . . . . Kinetic 48 | . 48 . . . . Thermal 764 | . 539 225 . . . Explosive 929 | . 469 . . 460 . Electromagnetic 382 | . 180 . . 172 30 Impact 42 | . . . . . 42 Slashing . | . . . . . . Piercing . | . . . . . . Highest Corruption 1 | . 1 1 1 1 . Average Corruption 1 | . 1 1 1 1 . Corruption Purged . | . . . . . . Corruption Blocked . | . . . . . . Effects 16 | . . 6 6 4 . Message Errors 2 | . . . 2 . . Matter Fused 5 | . . 2 2 1 . Heat Flow Errors 2 | . . . . 2 . Energy Discharges 2 | . . . 1 1 . Data Loss (minor) 2 | . . 2 . . . Data Loss (major) 1 | . . 1 . . . Misfires 1 | . . . 1 . . Alerts 1 | . . 1 . . . Overload Shots . | . . . . . . Overflow Damage 134 | . 84 . . 18 32 Projectiles . | . . . . . . Explosions 102 | . 84 . . 18 . Melee 32 | . . . . . 32 Knockbacks . | . . . . . . Impact . | . . . . . . Kinetic . | . . . . . . Secondary . | . . . . . . Self-Inflicted Damage 115 | . 40 . . 75 . Shots 5 | . 2 . . 3 . Rammed . | . . . . . . Targets Rammed . | . . . . . . Kicked . | . . . . . . Crushed . | . . . . . . Highest Temperature 291 | 18 291 123 . 245 . Average Temperature 86 | 12 94 51 . 125 . Received Heat Transfer 323 | . 228 27 . 32 36 Effects 2 | . . . . 2 . Interference 2 | . . . . 2 . Siege Activations . | . . . . . . Martial Activations . | . . . . . . Shielding Activations . | . . . . . . Robots Disrupted . | . . . . . . Combat Hostiles . | . . . . . . Robots Corrupted 2 | . . . . 1 1 Combat Hostiles 2 | . . . . 1 1 Parts Fried 1 | . 1 . . . . Impact Corruptions 1 | . . . . . 1 Robots Melted . | . . . . . . Combat Hostiles . | . . . . . . Parts Melted 7 | . 5 2 . . . Heat Transferred 2418 | . 1678 740 . . . Parts Sabotaged . | . . . . . . Parts Stolen . | . . . . . . Parts Stripped . | . . . . . . Power Chain Reactions 1 | . 1 . . . . Alert | -11 -10 -10 -10 -9 -8 ------- Run | Yrd Mat Min Exi Min Mat Maximum Alert Level 1 | . 1 . . . . Low Security (%) 97 | 100 94 100 . 100 100 Level 1 2 | . 5 . . . . Level 2 . | . . . . . . Level 3 . | . . . . . . Level 4 . | . . . . . . Level 5 . | . . . . . . High Security . | . . . . . . Max Security . | . . . . . . Peak Influence 225 | . 225 151 . 134 30 Initial 81 | . . 81 . . . Average 52 | . 52 84 . 31 4 Influence Increases 845 | . 435 181 . 189 40 Destroy 0b10 Robot/C 560 | . 260 140 . 140 20 Destroy 0b10 Robot/NC 40 | . 25 5 . 5 5 Destroy Leader 102 | . 42 30 . 20 10 Allied During Kill 6 | . . 6 . . . Successful Hack 19 | . 14 . . . 5 Select Force Hacks 30 | . 30 . . . . Disable Machine 45 | . 45 . . . . Destroy Structure 43 | . 19 . . 24 . Influence Decreases 815 | . 226 384 6 189 10 Entered New Map 134 | . . 128 6 . . Time Decay 591 | . 226 246 . 109 10 Lost Part 90 | . . 10 . 80 . Squads Dispatched 2 | . 2 . . . . Investigation 1 | . 1 . . . . Extermination . | . . . . . . Reinforcement 1 | . 1 . . . . Assault . | . . . . . . Garrison . | . . . . . . Intercept . | . . . . . . Searches Triggered . | . . . . . . Construction Impeded . | . . . . . . Haulers Reinforced . | . . . . . . Active Scanning Responses . | . . . . . . Cargo Convoy Interrupts . | . . . . . . Stealth | -11 -10 -10 -10 -9 -8 --------- Run | Yrd Mat Min Exi Min Mat Distress Signals 2 | . 2 . . . . Communications Jammed . | . . . . . . Distress Signals . | . . . . . . Times Spotted 51 | . 18 8 . 21 4 Peak Tracking Total 16 | . 3 3 . 16 3 Tactical Retreats 5 | . . . . 5 . Traps | -11 -10 -10 -10 -9 -8 ------- Run | Yrd Mat Min Exi Min Mat Traps Triggered 1 | . 1 . . . . Indirectly . | . . . . . . Trap Hack Attempts . | . . . . . . Triggered . | . . . . . . Disarmed . | . . . . . . Reprogrammed . | . . . . . . Reused . | . . . . . . Traps Extracted . | . . . . . . Installed . | . . . . . . Triggered . | . . . . . . Machines | -11 -10 -10 -10 -9 -8 ---------- Run | Yrd Mat Min Exi Min Mat Machines Disabled 4 | . 4 . . . . Max in Single Turn 3 | . 3 . . . . Machines Repaired . | . . . . . . Machines Dismantled . | . . . . . . Machines Sabotaged . | . . . . . . Overloaded Fab Kills . | . . . . . . Hacking | -11 -10 -10 -10 -9 -8 --------- Run | Yrd Mat Min Exi Min Mat Machines Accessed 6 | . 3 . 2 . 1 Terminals 3 | . 2 . . . 1 Fabricators . | . . . . . . Repair Stations . | . . . . . . Recycling Units 1 | . 1 . . . . Scanalyzers . | . . . . . . Garrison Access . | . . . . . . Total Hacks 13 | . 6 . 5 . 2 Successful 9 | . 3 . 5 . 1 Failed 4 | . 3 . . . 1 Catastrophic 1 | . . . . . 1 Database Lockouts . | . . . . . . Manual 9 | . 6 . 1 . 2 Terminals 7 | . 5 . . . 2 Fabricators . | . . . . . . Repair Stations . | . . . . . . Recycling Units 1 | . 1 . . . . Scanalyzers . | . . . . . . Garrison Access . | . . . . . . Terminal Hacks 7 | . 2 . 5 . . Record 4 | . . . 4 . . Part Schematic 2 | . 2 . . . . Proto ID Catalog 1 | . . . 1 . . Fabricator Hacks . | . . . . . . Repair Station Hacks . | . . . . . . Recycling Unit Hacks . | . . . . . . Scanalyzer . | . . . . . . Garrison Access Hacks . | . . . . . . Unauthorized Hacks 2 | . 1 . . . 1 Terminals 1 | . . . . . 1 Botnet 1 | . . . . . 1 Fabricators . | . . . . . . Repair Stations . | . . . . . . Recycling Units 1 | . 1 . . . . Tunnel 1 | . 1 . . . . Scanalyzers . | . . . . . . Garrison Access . | . . . . . . Data Cores Recovered 1 | . . . . . 1 Used . | . . . . . . Hacking Detections 3 | . 2 . . . 1 Full Trace Events 1 | . 1 . . . . Feedback Events . | . . . . . . Feedback Blocked . | . . . . . . Robot Schematics Acquired . | . . . . . . Robots Built . | . . . . . . Authchips . | . . . . . . Time . | . . . . . . Total Robot Build Rating . | . . . . . . Part Schematics Acquired 1 | . 1 . . . . Parts Built . | . . . . . . Authchips . | . . . . . . Time . | . . . . . . Total Part Build Rating . | . . . . . . Part Studies Acquired . | . . . . . . Parts Repaired . | . . . . . . Time . | . . . . . . Parts Recycled . | . . . . . . Recycled Matter . | . . . . . . Retrieved Matter . | . . . . . . Retrieved Components . | . . . . . . Parts Scanalyzed . | . . . . . . Part Schematics Acquired . | . . . . . . Parts Damaged . | . . . . . . Bothacking | -11 -10 -10 -10 -9 -8 ------------ Run | Yrd Mat Min Exi Min Mat Used RIF Installer . | . . . . . . Robots Hacked . | . . . . . . Non-combat . | . . . . . . Combat . | . . . . . . Robot Hacks Applied . | . . . . . . Relay Couplers Released . | . . . . . . Fabnet Peak Effective % . | . . . . . . Robots Rewired . | . . . . . . Allies Hacked . | . . . . . . Hacks Repelled . | . . . . . . Allies | -11 -10 -10 -10 -9 -8 -------- Run | Yrd Mat Min Exi Min Mat Total Allies 1 | . . 1 . . . Largest Group 1 | . . 1 1 . . Highest-Rated Group 31 | . . 31 31 . . Highest-Rated Ally 31 | . . 31 31 . . Total Orders . | . . . . . . Ally Attacks 8 | . . 8 . . . Total Damage 127 | . . 127 . . . Kills 3 | . . 3 . . . Allies Corrupted . | . . . . . . Allies Melted . | . . . . . . Intel | -11 -10 -10 -10 -9 -8 ------- Run | Yrd Mat Min Exi Min Mat Active Infowar (turns) . | . . . . . . Robot Analysis Total . | . . . . . . Derelict Logs Recovered 1 | . . 1 . . . Drone Launches . | . . . . . . Drone Recoveries . | . . . . . . Exploration | -11 -10 -10 -10 -9 -8 ------------- Run | Yrd Mat Min Exi Min Mat Turns Passed 2389 | 83 740 527 562 421 56 Spaces Moved 1169 | 44 328 189 215 360 33 Core 244 | 3 . . . 241 . Treads 426 | 41 328 57 . . . Legs 400 | . . 132 215 53 . Wheels 99 | . . . . 66 33 Hover . | . . . . . . Flight . | . . . . . . Fastest Speed 50 | 50 160 240 260 50 90 Average Speed 176 | 152 180 253 260 92 99 Slowest Speed 260 | 160 240 260 260 260 108 Overloaded Moves . | . . . . . . Propulsion Burnouts . | . . . . . . Robots Hopped . | . . . . . . Potential Cave-ins . | . . . . . . Cave-ins Triggered . | . . . . . . Exploration Rate (%) 39 | 3 51 39 60 81 4 Regions Visited 5 Branch Regions 3 Pre-discovered Areas 2 | . 1 . 1 . . Known Exits Taken . | . . . . . . Unknown Exits Taken 5 | 1 1 1 1 1 . Scrap Searched 1 | . . 1 . . . Spaces Dug . | . . . . . . Terrain Destroyed 49 | . 22 . . 27 . Melee . | . . . . . . Projectile . | . . . . . . AOE 49 | . 22 . . 27 . Terrain Rammed . | . . . . . . Walls Destroyed . | . . . . . . Machines Disabled . | . . . . . . Actions | -11 -10 -10 -10 -9 -8 --------- Run | Yrd Mat Min Exi Min Mat Total 1365 | 55 406 210 220 425 49 Wait 44 | . 10 5 . 23 6 Move 1164 | 43 327 188 214 359 33 Hop . | . . . . . . Pick Up 32 | 4 12 1 1 13 1 Fast Attach 12 | 6 4 . . 2 . Attach 19 | . . 1 2 11 5 Detach 2 | . . . 2 . . Swap 12 | 1 7 2 1 1 . Drop 9 | . 8 . . 1 . Fire 70 | 1 38 13 . 15 3 Melee 1 | . . . . . 1 Ram . | . . . . . . Kick . | . . . . . . Crush . | . . . . . . Escape Stasis . | . . . . . . Rewire . | . . . . . . Trap . | . . . . . . Miscellaneous . | . . . . . . Route ------- -11/Scrapyard -10/Materials (discovered 2 exits: [*Mat] / [*Min]) -10/Mines -10/Exiles -9/Mines -8/Materials (discovered 1 exit: Fac) History --------- Turn | Location | Event 4 | -11/Scrapyard | Discovered new exit (range 15) 84 | -11/Scrapyard | Entered Materials 309 | -10/Materials | Build established: Mutant 658 | -10/Materials | Discovered new exit (range 4) 683 | -10/Materials | Discovered new exit (range 16) 824 | -10/Materials | Entered Mines 843 | -10/Mines | Escorted by a lone wolf Derelict 1304 | -10/Mines | Learned location of 1 exit from Materials 1340 | -10/Mines | Deemed a non-threat by the Exiles lab entrance 1340 | -10/Mines | Discovered new exit (range 5) 1351 | -10/Mines | Entered Exiles 1351 | -10/Exiles | Accompanied by 1 ally 1414 | -10/Exiles | Met 8R-AWN 1461 | -10/Exiles | Met EX-HEX 1533 | -10/Exiles | Met EX-BIN 1565 | -10/Exiles | Aligned with FarCom system 1567 | -10/Exiles | Given EX-Vault access code 1630 | -10/Exiles | Opened EX-Vault 1643 | -10/Exiles | Found Modified TNC 1697 | -10/Exiles | Warned to stay clear of 0b10 Research branches 1769 | -10/Exiles | Met EX-DEC 1785 | -10/Exiles | Learned location of Zion (-7) 1871 | -10/Exiles | Discovered new exit (range 15) 1913 | -10/Exiles | Left Exiles lab with Modified TNC 1913 | -10/Exiles | Entered Mines 2023 | -9/Mines | Lost 5 parts (1p1u3w) 2055 | -9/Mines | Assembled infested the area 2092 | -9/Mines | Core integrity fell below 50% 2098 | -9/Mines | Released all parts (5) 2127 | -9/Mines | Lost 3 parts (2n1w) 2199 | -9/Mines | Found a hidden stash of uninstalled traps 2314 | -9/Mines | Discovered new exit (range 15) 2334 | -9/Mines | Entered Materials 2334 | -8/Materials | Evolved 4 slots: Propulsion x2, Utility x1, Weapon x1 2335 | -8/Materials | Identified exit to Factory 2390 | -8/Materials | Self-destructed Last Messages --------------- Loading 1 Materials exit... 02343_ O-16 Technician: "IFF HANDSHAKE FAILED. SECURING TERMINAL." 02343_ O-16 Technician destroyed. 02345_ Acquired data core, extracted dynamic key. 02351_ Acquired Hvy. Mace. 02365_ Connecting with Terminal... 02365_ Current location identified: Materials >>Trojan(Botnet) Trojan loaded successfully. Testing... Terminal linked with 0 systems. Awaiting botnet instructions. 02378_ EM Pulse Gun destroyed. 02385_ Wheel destroyed. 02385_ Destroyed Melee Analysis Suite. 02385_ L-31 Rogue system corrupted by crushing effect. 02386_ L-31 Rogue system terminally corrupted. Map ----- +----------------------------------------------------+ | | | | | | | | | | | | | | | | | | | | | | | | | | | | | | | | | | | | | | | | | | | | | | | ?????????????????????????????????????????????????? | | ???????????????????????######????????????????????? | | ???????????????????????# @ #????????????????????? | | ???????????????????????#"%= #????????????????????? | | ???????????????????????#T= #????????????????????? | | ???????????????????????#" #????????????????????? | | ???????????????????????# g #????????????????????? | | ???????????????????????#* g ######???????????????? | | ???????????gg??????????# ## #???????????????? | | ???????????????????????# ## #???????????????? | | ?????????????????####### ## #???????????????? | | ?????????????????# ###+### #???????????????? | | ?????????????????# * #???????????????? | | ?????????????????# % #???????????????? | | ?????????????????# #???????????????? | | ?????????????????# ###+#######???????????????? | | ?????????????????## ##?????????????????????????? | | ??????????????????# #??????????????????????????? | | ??????????????????# #??????????????????????????? | | ??????????????????+ #??????????????????????????? | | ??????????????????# #??????????????????????????? | | ??????????????????# #??????????????????????????? | | ??????????????????# #??????????????????????????? | | ??????????????????# ???????????????????????????? | | ??????????????????# ???????????????????????????? | | ??????????????????# ???????????????????????????? | | ??????????????????# ???????????????????????????? | +----------------------------------------------------+ Best States ------------- Heat Dissipation 51 Energy Generation 10 Energy Capacity 250 Matter Stores 300 Matter Capacity 300 Sight Range 16 Terrain Scan Density 10 Evasion (%) 50 Recoil Reduction 2 Item Schematics ----------------- Huge Storage Unit | -10/Materials | Hacked Robot Schematics ------------------ None Fabricated ------------ Nothing Repaired ---------- Nothing Studied --------- None Alien Tech Used ----------------- None Achievements -------------- None Challenges ------------ None Game ------ Seed MicrowarpDeflectorFirepult Manual? 0 Play Time 00:16:40 Cumulative 455.2 hours Start 2026.07.14 @ 13:18:07 End 2026.07.14 @ 20:03:01 Sessions 3 Manual Loads 0 Difficulty Rogue Special Mode None Game No. 422 Rogue 422 Adventurer 0 Explorer 0 Win Type - Total 11 Types 7/0/2/1/0/0/0/0/0/1 Lore% 61 Gallery% 69 Achievement% 65 Wizard Run 0 Options --------- Layout 1 ASCII 0 Keyboard 0 Movement Mouse Keybinds 0 Fullscreen 2 Font 24/Cog Map View 50x35 Zoom Use 8% Tactical HUD 1 Map Filters NONE Filters NONE Steam 1 RUN: a059fd6f-a3e2-4379-ad7d-5fb0b2f40d7b